[Event "FIDE Womens World Cup 2021"]
[Site "Sochi"]
[Date "2021.07.13"]
[Round "1.2"]
[White "Zhou, Qiyu"]
[Black "Vaishali R"]
[Result "0-1"]
[ECO "B24"]
[WhiteElo "2229"]
[BlackElo "2393"]
[Annotator "NA"]
[PlyCount "64"]
[EventDate "2021.07.12"]
[EventType "k.o."]
[EventCountry "RUS"]
[SourceTitle "playchess.com"]
[Source "ChessBase"]
[SourceQuality "1"]
[TimeControl "40/5400+30:1800+30"]

1. e4 {[%emt 0:00:04]} c5 {[%emt 0:00:13]} 2. Nc3 {[%emt 0:00:28]} Nc6 {[%emt 0:00:10]} 3. Bb5 {[%emt 0:00:12]} Nd4 {[%emt 0:00:20]} 4. Nf3 {[%emt 0:00:10]} e6 {[%emt 0:01:16]} 5. O-O {[%emt 0:00:21]} a6 {[%emt 0:00:12]} 6. Bd3 {[%emt 0:00:10]} Nc6 {[%emt 0:00:20]} 7. b3 {[%emt 0:00:24]} d6 {[%emt 0:01:01]} 8. Bb2 {[%emt 0:00:16]} Nf6 {[%emt 0:00:56]} 9. Re1 {[%emt 0:00:25]} Be7 {[%emt 0:01:29]} 10. e5 {[%emt 0:00:39]} dxe5 {[%emt 0:00:41]} 11. Nxe5 {[%emt 0:00:06]} Nxe5 {[%emt 0:03:08]} 12. Rxe5 {[%emt 0:00:21]} Bd7 {[%emt 0:00:18]} 13. Qe2 {[%emt 0:04:39]} Qc7 {[%emt 0:10:32]} 14. Rg5 {[%emt 0:16:27]} Rg8 {[%emt 0:27:32]} 15. h3 {[%emt 0:03:35]} h6 {[%emt 0:04:07]} 16. Rg3 {[%emt 0:01:00]} g5 {[%emt 0:03:48]} 17. Ne4 {[%emt 0:04:31]} Nd5 {[%emt 0:04:43]} 18. Qh5 {[%emt 0:03:22]} Rg6 {[%emt 0:05:51]} 19. Re1 {[%emt 0:21:35]} O-O-O {[%emt 0:04:12]} 20. Nc3 {[%emt 0:02:54]} Nf4 {[%emt 0:01:15]} 21. Qd1 {[%emt 0:02:18]} Rgg8 {[%emt 0:02:49]} 22. Ne2 {[%emt 0:05:10]} Bd6 {[%emt 0:09:30]} 23. Re3 {[%emt 0:03:49]} Nd5 {[%emt 0:03:49]} 24. Rf3 {[%emt 0:00:53]} f5 {[%emt 0:00:28]} 25. Nc3 {[%emt 0:00:46]} Nf4 {[%emt 0:00:29]} 26. Ne2 {[%emt 0:00:52]} e5 {[%emt 0:00:47]} 27. Nxf4 {[%emt 0:01:53]} gxf4 {[%emt 0:00:24]} 28. Bc4 {[%emt 0:00:19]} e4 {[%emt 0:00:53]} 29. Bxg8 {[%emt 0:01:00]} Rxg8 {[%emt 0:00:15]} 30. Rc3 {[%emt 0:01:00]} f3 {[%emt 0:04:15]} 31. Rxf3 {[%emt 0:02:04]} exf3 {[%emt 0:00:08]} 32. Qxf3 {[%emt 0:00:04]} f4 {[%emt 0:01:07]} 0-1

[Event "FIDE Womens World Cup 2021"]
[Site "Sochi"]
[Date "2021.07.13"]
[Round "1.2"]
[White "Aliaga Fernandez, Ingrid Y"]
[Black "Salimova, Nurgyul"]
[Result "1/2-1/2"]
[ECO "C45"]
[WhiteElo "2191"]
[BlackElo "2395"]
[Annotator "NA"]
[PlyCount "214"]
[EventDate "2021.07.12"]
[EventType "k.o."]
[EventCountry "RUS"]
[SourceTitle "playchess.com"]
[Source "ChessBase"]
[SourceQuality "1"]
[TimeControl "40/5400+30:1800+30"]

1. e4 {[%emt 0:00:11]} e5 {[%emt 0:00:18]} 2. Nf3 {[%emt 0:00:07]} Nc6 {[%emt 0:00:05]} 3. d4 {[%emt 0:00:10]} exd4 {[%emt 0:00:16]} 4. Nxd4 {[%emt 0:00:08]} Nf6 {[%emt 0:00:49]} 5. Nxc6 {[%emt 0:00:55]} bxc6 {[%emt 0:00:20]} 6. e5 {[%emt 0:00:21]} Qe7 {[%emt 0:01:14]} 7. Qe2 {[%emt 0:00:07]} Nd5 {[%emt 0:00:23]} 8. c4 {[%emt 0:00:56]} Ba6 {[%emt 0:01:36]} 9. b3 {[%emt 0:04:56]} g6 {[%emt 0:10:08]} 10. Bb2 {[%emt 0:04:23]} Bg7 {[%emt 0:02:39]} 11. Nd2 {[%emt 0:01:05]} Nb4 {[%emt 0:02:28]} 12. Nf3 {[%emt 0:22:23]} c5 {[%emt 0:01:40]} 13. g3 {[%emt 0:03:22]} O-O {[%emt 0:01:07]} 14. Bg2 {[%emt 0:00:29]} d5 {[%emt 0:01:18]} 15. O-O {[%emt 0:01:14]} dxc4 {[%emt 0:00:18]} 16. bxc4 {[%emt 0:00:14]} Rad8 {[%emt 0:01:01]} 17. Rfd1 {[%emt 0:07:38]} Qe6 {[%emt 0:03:08]} 18. Bf1 {[%emt 0:04:40]} Bb7 {[%emt 0:09:41]} 19. a3 {[%emt 0:03:59]} Bxf3 {[%emt 0:08:06]} 20. Qxf3 {[%emt 0:00:06]} Nc2 {[%emt 0:00:58]} 21. Rac1 {[%emt 0:12:14]} Nd4 {[%emt 0:00:56]} 22. Bxd4 {[%emt 0:00:05]} cxd4 {[%emt 0:01:14]} 23. Qb7 {[%emt 0:07:43]} Qxe5 {[%emt 0:04:14]} 24. Qxa7 {[%emt 0:01:05]} Ra8 {[%emt 0:05:40]} 25. Qb7 {[%emt 0:00:05]} Rxa3 {[%emt 0:03:23]} 26. Rb1 {[%emt 0:03:29]} Ra2 {[%emt 0:06:45]} 27. Qb3 {[%emt 0:02:45]} Ra5 {[%emt 0:03:51]} 28. Bg2 {[%emt 0:01:00]} Qf6 {[%emt 0:01:37]} 29. Rd3 {[%emt 0:00:44]} Rf5 {[%emt 0:02:02]} 30. Rf3 {[%emt 0:03:55]} Re8 {[%emt 0:05:00]} 31. Qd3 {[%emt 0:01:40]} Rxf3 {[%emt 0:00:55]} 32. Qxf3 {[%emt 0:02:02]} Qe7 {[%emt 0:01:51]} 33. h4 {[%emt 0:01:24]} Rd8 {[%emt 0:03:16]} 34. Rd1 {[%emt 0:00:29]} h5 {[%emt 0:00:46]} 35. Qe4 {[%emt 0:01:01]} Qb4 {[%emt 0:06:15]} 36. Bf1 {[%emt 0:00:28]} Qa4 {[%emt 0:03:12]} 37. Rb1 {[%emt 0:02:02]} Qd7 {[%emt 0:08:41]} 38. Bd3 {[%emt 0:00:27]} Re8 {[%emt 0:00:52]} 39. Qf3 {[%emt 0:02:52]} Qd6 {[%emt 0:00:49]} 40. Kg2 {[%emt 0:00:32]} Bh6 {[%emt 0:00:40]} 41. Rb5 {[%emt 0:31:35]} Bg7 {[%emt 0:07:23]} 42. Rb1 {[%emt 0:00:00]} Re6 {[%emt 0:10:46]} 43. Rb8+ {[%emt 0:00:00]} Bf8 {[%emt 0:01:12]} 44. Rb5 {[%emt 0:00:00]} c6 {[%emt 0:03:56]} 45. Rb7 {[%emt 0:00:00]} Be7 {[%emt 0:01:08]} 46. Rb6 {[%emt 0:00:00]} Qc5 {[%emt 0:05:26]} 47. Rb7 {[%emt 0:00:00]} Kg7 {[%emt 0:00:48]} 48. Rc7 {[%emt 0:00:00]} Qd6 {[%emt 0:00:52]} 49. Rb7 {[%emt 0:00:00]} Qe5 {[%emt 0:00:59]} 50. Rb6 {[%emt 0:00:00]} Rf6 {[%emt 0:00:44]} 51. Qe4 {[%emt 0:00:00]} Qc7 {[%emt 0:00:47]} 52. Rb2 {[%emt 0:00:00]} Re6 {[%emt 0:00:24]} 53. Qf3 {[%emt 0:00:00]} Qa5 {[%emt 0:00:35]} 54. Re2 {[%emt 0:00:00]} Rxe2 {[%emt 0:00:39]} 55. Qxe2 {[%emt 0:00:00]} Qa3 {[%emt 0:01:16]} 56. Qe4 {[%emt 0:00:00]} Qc5 {[%emt 0:00:25]} 57. Qf3 {[%emt 0:00:00]} Bf6 {[%emt 0:00:25]} 58. Qe4 {[%emt 0:00:00]} Qd6 {[%emt 0:00:24]} 59. Qf3 {[%emt 0:00:00]} c5 {[%emt 0:00:41]} 60. Qe4 {[%emt 0:00:07]} Qb6 {[%emt 0:00:11]} 61. Qf3 {[%emt 0:00:27]} Qb2 {[%emt 0:00:39]} 62. Qe4 {[%emt 0:00:20]} Qd2 {[%emt 0:00:14]} 63. Qf3 {[%emt 0:00:16]} Bd8 {[%emt 0:00:38]} 64. Qe4 {[%emt 0:00:51]} Bc7 {[%emt 0:01:01]} 65. Be2 {[%emt 0:01:27]} Bd8 {[%emt 0:00:45]} 66. Bd3 {[%emt 0:00:14]} Bf6 {[%emt 0:00:10]} 67. Be2 {[%emt 0:00:09]} Qb2 {[%emt 0:00:53]} 68. Bd3 {[%emt 0:00:17]} Qb8 {[%emt 0:00:08]} 69. Kf3 {[%emt 0:00:19]} Qc8 {[%emt 0:00:19]} 70. Kg2 {[%emt 0:00:10]} Kf8 {[%emt 0:00:31]} 71. Qd5 {[%emt 0:00:31]} Qc7 {[%emt 0:01:15]} 72. Qe4 {[%emt 0:00:18]} Qd8 {[%emt 0:00:17]} 73. Kf3 {[%emt 0:00:27]} Qd7 {[%emt 0:00:39]} 74. Kg2 {[%emt 0:00:24]} Kg8 {[%emt 0:00:24]} 75. Qa8+ {[%emt 0:00:27]} Kg7 {[%emt 0:00:29]} 76. Qe4 {[%emt 0:00:27]} Qd6 {[%emt 0:00:15]} 77. Kf3 {[%emt 0:00:16]} Bd8 {[%emt 0:00:07]} 78. Kg2 {[%emt 0:00:27]} Qf6 {[%emt 0:00:36]} 79. Qd5 {[%emt 0:00:27]} Qe7 {[%emt 0:00:14]} 80. Qe4 {[%emt 0:00:26]} Qd6 {[%emt 0:00:22]} 81. Qf3 {[%emt 0:00:11]} Ba5 {[%emt 0:00:26]} 82. Qe4 {[%emt 0:00:59]} Bd2 {[%emt 0:00:37]} 83. Qe2 {[%emt 0:00:15]} Bh6 {[%emt 0:00:14]} 84. Qe4 {[%emt 0:00:06]} Qb8 {[%emt 0:01:09]} 85. Qe2 {[%emt 0:03:29]} Kg8 {[%emt 0:00:21]} 86. Qe4 {[%emt 0:00:13]} Qb2 {[%emt 0:01:07]} 87. Qe2 {[%emt 0:00:38]} Qxe2 {[%emt 0:00:28]} 88. Bxe2 {[%emt 0:00:05]} Bd2 {[%emt 0:00:14]} 89. Bd3 {[%emt 0:02:50]} Kg7 {[%emt 0:00:14]} 90. Kf3 {[%emt 0:00:20]} f6 {[%emt 0:00:48]} 91. Bf1 {[%emt 0:04:20]} g5 {[%emt 0:00:27]} 92. Bd3 {[%emt 0:00:30]} Kf7 {[%emt 0:00:24]} 93. Bf5 {[%emt 0:00:13]} Ba5 {[%emt 0:00:28]} 94. Ke2 {[%emt 0:01:34]} Bc7 {[%emt 0:00:14]} 95. Kf3 {[%emt 0:00:41]} Ba5 {[%emt 0:00:40]} 96. Ke2 {[%emt 0:00:11]} Bb6 {[%emt 0:00:54]} 97. Kd3 {[%emt 0:00:18]} Bd8 {[%emt 0:00:21]} 98. Ke2 {[%emt 0:01:09]} gxh4 {[%emt 0:00:18]} 99. gxh4 {[%emt 0:00:05]} Ke7 {[%emt 0:00:21]} 100. Bg6 {[%emt 0:00:06]} Ke6 {[%emt 0:00:07]} 101. Bxh5 {[%emt 0:00:06]} f5 {[%emt 0:00:04]} 102. Bf3 {[%emt 0:00:12]} Bxh4 {[%emt 0:00:05]} 103. Bd5+ {[%emt 0:00:21]} Ke5 {[%emt 0:00:09]} 104. f3 {[%emt 0:00:11]} Kf4 {[%emt 0:00:05]} 105. Kd3 {[%emt 0:00:04]} Kg3 {[%emt 0:00:12]} 106. Bc6 {[%emt 0:00:05]} Kf2 {[%emt 0:00:04]} 107. Bd5 {[%emt 0:00:13]} Ke1 {[%emt 0:00:05]} 1/2-1/2

[Event "FIDE Womens World Cup 2021"]
[Site "Sochi"]
[Date "2021.07.13"]
[Round "1.2"]
[White "Alboredo, Julia"]
[Black "Zawadzka, Jolanta"]
[Result "1/2-1/2"]
[ECO "E10"]
[WhiteElo "2182"]
[BlackElo "2403"]
[Annotator "NA"]
[PlyCount "98"]
[EventDate "2021.07.12"]
[EventType "k.o."]
[EventCountry "RUS"]
[SourceTitle "playchess.com"]
[Source "ChessBase"]
[SourceQuality "1"]
[TimeControl "40/5400+30:1800+30"]

1. d4 {[%emt 0:00:04]} Nf6 {[%emt 0:00:25]} 2. c4 {[%emt 0:00:09]} e6 {[%emt 0:00:05]} 3. Nf3 {[%emt 0:00:17]} d5 {[%emt 0:00:07]} 4. cxd5 {[%emt 0:00:37]} exd5 {[%emt 0:00:09]} 5. Nc3 {[%emt 0:00:09]} Bb4 {[%emt 0:00:32]} 6. Bg5 {[%emt 0:00:24]} h6 {[%emt 0:00:28]} 7. Bxf6 {[%emt 0:00:26]} Qxf6 {[%emt 0:00:11]} 8. Qb3 {[%emt 0:00:13]} Qb6 {[%emt 0:08:07]} 9. e3 {[%emt 0:00:32]} O-O {[%emt 0:07:37]} 10. Bd3 {[%emt 0:00:53]} Be6 {[%emt 0:02:29]} 11. O-O {[%emt 0:00:33]} Bxc3 {[%emt 0:02:17]} 12. Qxc3 {[%emt 0:01:05]} Nd7 {[%emt 0:00:22]} 13. b4 {[%emt 0:03:46]} Qd6 {[%emt 0:04:50]} 14. Rfc1 {[%emt 0:11:02]} Rac8 {[%emt 0:01:53]} 15. Nd2 {[%emt 0:03:46]} Rfe8 {[%emt 0:08:49]} 16. Nb3 {[%emt 0:03:23]} Re7 {[%emt 0:16:05]} 17. Rab1 {[%emt 0:07:13]} c6 {[%emt 0:06:07]} 18. b5 {[%emt 0:17:00]} Nb8 {[%emt 0:02:32]} 19. Qc5 {[%emt 0:11:21]} Qxc5 {[%emt 0:00:49]} 20. Nxc5 {[%emt 0:03:46]} b6 {[%emt 0:01:14]} 21. Nxe6 {[%emt 0:03:06]} fxe6 {[%emt 0:00:07]} 22. bxc6 {[%emt 0:00:10]} Rec7 {[%emt 0:00:56]} 23. Bb5 {[%emt 0:01:47]} Kf7 {[%emt 0:04:50]} 24. f3 {[%emt 0:01:37]} Ke7 {[%emt 0:00:53]} 25. Kf2 {[%emt 0:02:04]} a6 {[%emt 0:10:48]} 26. Bd3 {[%emt 0:00:28]} Rxc6 {[%emt 0:00:09]} 27. Rxc6 {[%emt 0:00:07]} Rxc6 {[%emt 0:00:02]} 28. e4 {[%emt 0:01:32]} Nd7 {[%emt 0:12:19]} 29. a4 {[%emt 0:09:39]} dxe4 {[%emt 0:00:10]} 30. fxe4 {[%emt 0:00:32]} e5 {[%emt 0:00:11]} 31. dxe5 {[%emt 0:09:35]} Nc5 {[%emt 0:00:24]} 32. Ke3 {[%emt 0:01:01]} Ke6 {[%emt 0:00:58]} 33. Kd4 {[%emt 0:01:20]} Nxd3 {[%emt 0:00:10]} 34. Kxd3 {[%emt 0:00:06]} Kxe5 {[%emt 0:00:09]} 35. Rf1 {[%emt 0:00:38]} Rf6 {[%emt 0:02:30]} 36. Rb1 {[%emt 0:03:14]} Rd6+ {[%emt 0:00:10]} 37. Ke3 {[%emt 0:00:26]} Rd4 {[%emt 0:00:21]} 38. Rxb6 {[%emt 0:00:14]} Rxe4+ {[%emt 0:00:06]} 39. Kf3 {[%emt 0:00:18]} Rxa4 {[%emt 0:00:55]} 40. Rg6 {[%emt 0:00:15]} Rf4+ {[%emt 0:00:58]} 41. Kg3 {[%emt 0:32:57]} Rf7 {[%emt 0:30:28]} 42. Rxa6 {[%emt 0:00:07]} Re7 {[%emt 0:04:42]} 43. Kg4 {[%emt 0:03:09]} Re6 {[%emt 0:01:12]} 44. Ra2 {[%emt 0:00:00]} Kf6 {[%emt 0:00:00]} 45. h4 {[%emt 0:00:00]} Re4+ {[%emt 0:00:00]} 46. Kh3 {[%emt 0:00:00]} g5 {[%emt 0:00:00]} 47. Ra6+ {[%emt 0:00:00]} Kg7 {[%emt 0:00:00]} 48. hxg5 {[%emt 0:00:00]} hxg5 {[%emt 0:00:00]} 49. Kg3 {[%emt 0:00:00]} Rb4 {[%emt 0:00:00]} 1/2-1/2

[Event "FIDE Womens World Cup 2021"]
[Site "Sochi"]
[Date "2021.07.13"]
[Round "1.2"]
[White "Frayna, Janelle Mae"]
[Black "Hoang, Thanh Trang"]
[Result "1-0"]
[ECO "A40"]
[WhiteElo "2179"]
[BlackElo "2404"]
[Annotator "NA"]
[PlyCount "81"]
[EventDate "2021.07.12"]
[EventType "k.o."]
[EventCountry "RUS"]
[SourceTitle "playchess.com"]
[Source "ChessBase"]
[SourceQuality "1"]
[TimeControl "40/5400+30:1800+30"]

1. d4 {[%emt 0:00:24]} e6 {[%emt 0:00:41]} 2. c4 {[%emt 0:00:19]} f5 {[%emt 0:00:42]} 3. Nf3 {[%emt 0:00:27]} Nf6 {[%emt 0:00:29]} 4. g3 {[%emt 0:00:18]} c6 {[%emt 0:01:01]} 5. Bg2 {[%emt 0:00:07]} d5 {[%emt 0:00:18]} 6. O-O {[%emt 0:00:03]} Bd6 {[%emt 0:00:28]} 7. b3 {[%emt 0:01:57]} Qe7 {[%emt 0:01:09]} 8. Ne5 {[%emt 0:01:59]} O-O {[%emt 0:03:23]} 9. Qc2 {[%emt 0:00:37]} a5 {[%emt 0:11:24]} 10. Nd2 {[%emt 0:08:32]} b6 {[%emt 0:03:58]} 11. Ndf3 {[%emt 0:13:57]} Ne4 {[%emt 0:04:23]} 12. Nd3 {[%emt 0:01:37]} Bb7 {[%emt 0:03:44]} 13. Bf4 {[%emt 0:02:55]} Nd7 {[%emt 0:02:38]} 14. Nfe5 {[%emt 0:06:22]} Rac8 {[%emt 0:04:49]} 15. Nxd7 {[%emt 0:07:31]} Qxd7 {[%emt 0:00:14]} 16. Bxd6 {[%emt 0:00:22]} Qxd6 {[%emt 0:06:36]} 17. c5 {[%emt 0:01:22]} bxc5 {[%emt 0:02:23]} 18. Bxe4 {[%emt 0:00:12]} fxe4 {[%emt 0:01:06]} 19. Qxc5 {[%emt 0:00:34]} Qc7 {[%emt 0:06:44]} 20. Ne5 {[%emt 0:00:29]} a4 {[%emt 0:02:41]} 21. f4 {[%emt 0:05:45]} Ra8 {[%emt 0:06:03]} 22. b4 {[%emt 0:08:21]} Rfc8 {[%emt 0:06:35]} 23. Rfc1 {[%emt 0:01:04]} Qd8 {[%emt 0:02:24]} 24. a3 {[%emt 0:01:15]} h6 {[%emt 0:03:32]} 25. Ra2 {[%emt 0:04:27]} Ra6 {[%emt 0:03:30]} 26. Qc2 {[%emt 0:04:20]} Qd6 {[%emt 0:06:13]} 27. e3 {[%emt 0:02:28]} Qd8 {[%emt 0:01:13]} 28. Qd1 {[%emt 0:00:38]} Qe8 {[%emt 0:00:14]} 29. Rc5 {[%emt 0:01:13]} Rca8 {[%emt 0:01:50]} 30. Rac2 {[%emt 0:02:44]} Rb6 {[%emt 0:00:25]} 31. Rc1 {[%emt 0:00:52]} Raa6 {[%emt 0:01:21]} 32. g4 {[%emt 0:01:45]} Qe7 {[%emt 0:02:26]} 33. R1c2 {[%emt 0:01:49]} Qh4 {[%emt 0:04:42]} 34. Rg2 {[%emt 0:01:58]} Ra8 {[%emt 0:00:34]} 35. g5 {[%emt 0:01:34]} hxg5 {[%emt 0:00:26]} 36. Rxg5 {[%emt 0:00:21]} Rb5 {[%emt 0:02:08]} 37. Rc2 {[%emt 0:01:03]} Ra7 {[%emt 0:04:19]} 38. Rcg2 {[%emt 0:00:32]} Ba6 {[%emt 0:01:05]} 39. Ng6 {[%emt 0:02:59]} Qh3 {[%emt 0:00:22]} 40. R2g3 {[%emt 0:00:08]} Qh6 {[%emt 0:00:23]} 41. Rh5 {[%emt 0:30:36]} 1-0

[Event "FIDE Womens World Cup 2021"]
[Site "Sochi"]
[Date "2021.07.13"]
[Round "1.2"]
[White "Wafa, Shahenda"]
[Black "Skripchenko, Almira"]
[Result "1/2-1/2"]
[ECO "B12"]
[WhiteElo "2106"]
[BlackElo "2411"]
[Annotator "NA"]
[PlyCount "132"]
[EventDate "2021.07.12"]
[EventType "k.o."]
[EventCountry "RUS"]
[SourceTitle "playchess.com"]
[Source "ChessBase"]
[SourceQuality "1"]
[TimeControl "40/5400+30:1800+30"]

1. e4 {[%emt 0:00:04]} c6 {[%emt 0:00:12]} 2. d4 {[%emt 0:00:10]} d5 {[%emt 0:00:05]} 3. e5 {[%emt 0:01:37]} c5 {[%emt 0:00:47]} 4. c3 {[%emt 0:01:34]} Nc6 {[%emt 0:00:22]} 5. Bb5 {[%emt 0:15:50]} Qb6 {[%emt 0:06:54]} 6. Bxc6+ {[%emt 0:06:21]} Qxc6 {[%emt 0:02:45]} 7. dxc5 {[%emt 0:00:17]} Qg6 {[%emt 0:12:36]} 8. Qxd5 {[%emt 0:09:42]} Bd7 {[%emt 0:04:28]} 9. e6 {[%emt 0:06:01]} Qxe6+ {[%emt 0:01:56]} 10. Qxe6 {[%emt 0:00:14]} Bxe6 {[%emt 0:00:04]} 11. Ne2 {[%emt 0:02:36]} Bd5 {[%emt 0:07:31]} 12. O-O {[%emt 0:04:58]} e5 {[%emt 0:02:44]} 13. b4 {[%emt 0:02:04]} a5 {[%emt 0:16:04]} 14. a3 {[%emt 0:03:17]} Nf6 {[%emt 0:05:14]} 15. Bb2 {[%emt 0:07:38]} Bc4 {[%emt 0:07:25]} 16. Re1 {[%emt 0:00:40]} O-O-O {[%emt 0:00:05]} 17. Ng3 {[%emt 0:02:04]} h5 {[%emt 0:06:21]} 18. Nf1 {[%emt 0:01:07]} h4 {[%emt 0:05:03]} 19. Nbd2 {[%emt 0:04:33]} Bd3 {[%emt 0:01:26]} 20. Rxe5 {[%emt 0:05:15]} h3 {[%emt 0:03:55]} 21. g3 {[%emt 0:05:05]} Ng4 {[%emt 0:00:57]} 22. Ree1 {[%emt 0:00:27]} f6 {[%emt 0:00:05]} 23. c4 {[%emt 0:03:42]} Rh5 {[%emt 0:01:40]} 24. Ne3 {[%emt 0:02:25]} Nxe3 {[%emt 0:01:51]} 25. Rxe3 {[%emt 0:00:09]} Rf5 {[%emt 0:00:56]} 26. Rae1 {[%emt 0:02:19]} axb4 {[%emt 0:03:57]} 27. axb4 {[%emt 0:00:09]} b6 {[%emt 0:00:07]} 28. Re8 {[%emt 0:02:14]} bxc5 {[%emt 0:00:13]} 29. Rxd8+ {[%emt 0:00:19]} Kxd8 {[%emt 0:00:05]} 30. Re3 {[%emt 0:01:03]} Bc2 {[%emt 0:00:27]} 31. b5 {[%emt 0:00:39]} Bd6 {[%emt 0:00:49]} 32. f4 {[%emt 0:06:02]} Rh5 {[%emt 0:00:19]} 33. Ne4 {[%emt 0:00:29]} Bxe4 {[%emt 0:00:53]} 34. Rxe4 {[%emt 0:00:06]} Kd7 {[%emt 0:00:07]} 35. Kf2 {[%emt 0:00:33]} Rh8 {[%emt 0:00:16]} 36. Kf3 {[%emt 0:00:55]} Ra8 {[%emt 0:01:28]} 37. Re2 {[%emt 0:00:54]} Be7 {[%emt 0:01:37]} 38. Rd2+ {[%emt 0:00:46]} Ke6 {[%emt 0:00:19]} 39. Re2+ {[%emt 0:00:53]} Kd7 {[%emt 0:00:05]} 40. Kg4 {[%emt 0:03:26]} Rh8 {[%emt 0:00:35]} 41. Bc1 {[%emt 0:30:38]} g6 {[%emt 0:30:53]} 42. Ra2 {[%emt 0:01:05]} f5+ {[%emt 0:01:07]} 43. Kf3 {[%emt 0:00:08]} Ke6 {[%emt 0:06:25]} 44. Be3 {[%emt 0:00:00]} Rc8 {[%emt 0:00:00]} 45. Ra6+ {[%emt 0:00:00]} Bd6 {[%emt 0:00:00]} 46. g4 {[%emt 0:00:00]} fxg4+ {[%emt 0:00:00]} 47. Kxg4 {[%emt 0:00:00]} Kd7 {[%emt 0:00:00]} 48. Ra7+ {[%emt 0:00:00]} Ke6 {[%emt 0:00:00]} 49. Kxh3 {[%emt 0:00:00]} Kf5 {[%emt 0:00:00]} 50. Ra6 {[%emt 0:00:00]} Rd8 {[%emt 0:00:00]} 51. Rc6 {[%emt 0:00:00]} Ke4 {[%emt 0:00:00]} 52. Bf2 {[%emt 0:00:00]} Kf3 {[%emt 0:00:00]} 53. Bh4 {[%emt 0:00:00]} Rd7 {[%emt 0:00:00]} 54. b6 {[%emt 0:00:00]} Bxf4 {[%emt 0:00:00]} 55. Rxg6 {[%emt 0:00:00]} Rh7 {[%emt 0:00:00]} 56. Rf6 {[%emt 0:01:56]} Ke4 {[%emt 0:00:00]} 57. Rg6 {[%emt 0:01:51]} Kf3 {[%emt 0:00:00]} 58. Rg1 {[%emt 0:01:14]} Bxh2 {[%emt 0:00:00]} 59. Rf1+ {[%emt 0:00:08]} Ke4 {[%emt 0:00:00]} 60. Kxh2 {[%emt 0:01:36]} Rxh4+ {[%emt 0:00:00]} 61. Kg3 {[%emt 0:00:03]} Rh8 {[%emt 0:00:18]} 62. Rd1 {[%emt 0:00:36]} Rb8 {[%emt 0:00:32]} 63. Rd6 {[%emt 0:00:11]} Ke5 {[%emt 0:00:26]} 64. Rd5+ {[%emt 0:00:15]} Ke4 {[%emt 0:00:52]} 65. Rd6 {[%emt 0:00:46]} Ke5 {[%emt 0:00:05]} 66. Rd5+ {[%emt 0:00:12]} Ke4 1/2-1/2

[Event "FIDE Womens World Cup 2021"]
[Site "Sochi"]
[Date "2021.07.13"]
[Round "1.2"]
[White "Demchenko, Svitlana"]
[Black "Cyfka, Karina"]
[Result "1/2-1/2"]
[ECO "C42"]
[WhiteElo "2089"]
[BlackElo "2417"]
[Annotator "NA"]
[PlyCount "138"]
[EventDate "2021.07.12"]
[EventType "k.o."]
[EventCountry "RUS"]
[SourceTitle "playchess.com"]
[Source "ChessBase"]
[SourceQuality "1"]
[TimeControl "40/5400+30:1800+30"]

1. e4 {[%emt 0:00:04]} e5 {[%emt 0:00:06]} 2. Nf3 {[%emt 0:00:10]} Nf6 {[%emt 0:00:22]} 3. Nxe5 {[%emt 0:01:14]} d6 {[%emt 0:00:15]} 4. Nf3 {[%emt 0:00:08]} Nxe4 {[%emt 0:00:08]} 5. Nc3 {[%emt 0:00:20]} Nxc3 {[%emt 0:00:38]} 6. dxc3 {[%emt 0:00:15]} Be7 {[%emt 0:00:14]} 7. Bf4 {[%emt 0:06:38]} O-O {[%emt 0:01:32]} 8. Qd2 {[%emt 0:02:32]} Nd7 {[%emt 0:00:59]} 9. Bc4 {[%emt 0:05:08]} Nf6 {[%emt 0:10:30]} 10. O-O-O {[%emt 0:10:30]} Bg4 {[%emt 0:07:49]} 11. Qd3 {[%emt 0:10:23]} Qd7 {[%emt 0:07:37]} 12. h3 {[%emt 0:05:03]} Bf5 {[%emt 0:01:06]} 13. Qf1 {[%emt 0:02:58]} d5 {[%emt 0:09:13]} 14. Bb5 {[%emt 0:01:50]} c6 {[%emt 0:01:27]} 15. Bd3 {[%emt 0:00:14]} c5 {[%emt 0:05:01]} 16. Kb1 {[%emt 0:07:30]} c4 {[%emt 0:06:29]} 17. Bxc4 {[%emt 0:08:32]} Qa4 {[%emt 0:07:31]} 18. Nd4 {[%emt 0:04:29]} Bxc2+ {[%emt 0:00:22]} 19. Nxc2 {[%emt 0:00:10]} dxc4 {[%emt 0:00:12]} 20. Qe2 {[%emt 0:11:53]} Rfe8 {[%emt 0:05:30]} 21. Qf3 {[%emt 0:00:10]} Qb5 {[%emt 0:00:11]} 22. Rhe1 {[%emt 0:02:29]} Bf8 {[%emt 0:00:27]} 23. Nd4 {[%emt 0:01:50]} Qd5 {[%emt 0:02:19]} 24. Qxd5 {[%emt 0:01:43]} Nxd5 {[%emt 0:00:02]} 25. Bg3 {[%emt 0:00:14]} Bc5 {[%emt 0:03:59]} 26. Nf5 {[%emt 0:02:31]} Nf6 {[%emt 0:01:34]} 27. f3 {[%emt 0:02:08]} Rxe1 {[%emt 0:02:56]} 28. Rxe1 {[%emt 0:00:11]} Re8 {[%emt 0:00:18]} 29. Rxe8+ {[%emt 0:02:39]} Nxe8 {[%emt 0:00:02]} 30. Bf4 {[%emt 0:00:45]} f6 {[%emt 0:01:43]} 31. a4 {[%emt 0:04:03]} Kf7 {[%emt 0:01:30]} 32. Kc2 {[%emt 0:02:19]} Ke6 {[%emt 0:01:09]} 33. Ng3 {[%emt 0:01:12]} f5 {[%emt 0:02:48]} 34. b3 {[%emt 0:00:23]} Bd6 {[%emt 0:02:50]} 35. Ne2 {[%emt 0:01:48]} Bxf4 {[%emt 0:01:24]} 36. Nxf4+ {[%emt 0:00:03]} Ke5 {[%emt 0:00:05]} 37. g3 {[%emt 0:01:14]} g5 {[%emt 0:01:45]} 38. Ne2 {[%emt 0:01:02]} Nd6 {[%emt 0:01:49]} 39. Nd4 {[%emt 0:00:54]} h5 {[%emt 0:01:20]} 40. a5 {[%emt 0:01:26]} g4 {[%emt 0:02:36]} 41. hxg4 {[%emt 0:07:14]} fxg4 {[%emt 0:02:23]} 42. bxc4 {[%emt 0:04:32]} Nxc4 {[%emt 0:03:49]} 43. a6 {[%emt 0:01:03]} bxa6 {[%emt 0:00:18]} 44. Kd3 {[%emt 0:01:00]} Kd5 {[%emt 0:00:59]} 45. fxg4 {[%emt 0:04:29]} hxg4 {[%emt 0:00:19]} 46. Nf5 {[%emt 0:01:07]} a5 {[%emt 0:01:07]} 47. Ne7+ {[%emt 0:01:27]} Kc5 {[%emt 0:01:26]} 48. Kc2 {[%emt 0:00:59]} a4 {[%emt 0:04:19]} 49. Nf5 {[%emt 0:00:23]} Kd5 {[%emt 0:14:23]} 50. Nh6 {[%emt 0:03:31]} Ne3+ {[%emt 0:02:05]} 51. Kb2 {[%emt 0:00:17]} Kc4 {[%emt 0:00:04]} 52. Ka3 {[%emt 0:01:02]} Kb5 {[%emt 0:00:04]} 53. Nf7 {[%emt 0:01:12]} a6 {[%emt 0:02:10]} 54. Nd6+ {[%emt 0:00:31]} Kc5 {[%emt 0:01:00]} 55. Nf7 {[%emt 0:00:32]} Kb5 {[%emt 0:03:47]} 56. Nd6+ {[%emt 0:00:25]} Ka5 {[%emt 0:00:06]} 57. Nb7+ {[%emt 0:01:38]} Kb6 {[%emt 0:00:04]} 58. Nd6 {[%emt 0:00:07]} Nd1 {[%emt 0:02:56]} 59. Kxa4 {[%emt 0:02:08]} Nxc3+ {[%emt 0:00:05]} 60. Kb3 {[%emt 0:00:21]} Ne2 {[%emt 0:00:58]} 61. Nc4+ {[%emt 0:01:30]} Kb5 {[%emt 0:00:12]} 62. Ne5 {[%emt 0:00:06]} Nxg3 {[%emt 0:00:09]} 63. Nxg4 {[%emt 0:00:05]} Ne4 {[%emt 0:00:03]} 64. Ne3 {[%emt 0:00:35]} a5 {[%emt 0:00:08]} 65. Nc2 {[%emt 0:01:24]} Nd2+ {[%emt 0:00:16]} 66. Ka2 {[%emt 0:00:47]} Ka4 {[%emt 0:00:19]} 67. Nd4 {[%emt 0:00:35]} Ne4 {[%emt 0:00:28]} 68. Nc6 {[%emt 0:00:30]} Kb5 {[%emt 0:00:03]} 69. Nxa5 {[%emt 0:00:05]} Kxa5 {[%emt 0:00:03]} 1/2-1/2